[Event "Titled Tuesday Blitz February 07 Early 2023"]
[White "Assaubayeva, Bibisara"]
[Black "Pakleza, Zbigniew"]
[WhiteFideId "13708694"]
[BlackFideId "1119290"]
[WhiteElo "2464"]
[BlackElo "2494"]
[Result "1-0"]
[Round "07"]
[TimeControl "180+2"]
[Date "2023.02.07"]
[WhiteClock "0:00:22"]
[BlackClock "0:00:08"]

1. e4 {[%clk 0:03:00]}  d6 {[%clk 0:02:59]} 2. d4 {[%clk 0:02:59]}  Nf6 {[%clk 0:03:00]} 3. Nc3 {[%clk 0:02:58]}  c6 {[%clk 0:03:00]} 4. g3 {[%clk 0:02:54]}  b5 {[%clk 0:03:00]} 5. Bg2 {[%clk 0:02:51]}  e5 {[%clk 0:02:58]} 6. Nge2 {[%clk 0:02:47]}  Nbd7 {[%clk 0:02:56]} 7. a3 {[%clk 0:02:45]}  Be7 {[%clk 0:02:56]} 8. O-O {[%clk 0:02:44]}  Bb7 {[%clk 0:02:54]} 9. h3 {[%clk 0:02:41]}  a5 {[%clk 0:02:54]} 10. Be3 {[%clk 0:02:36]}  O-O {[%clk 0:02:53]} 11. b4 {[%clk 0:02:30]}  Re8 {[%clk 0:02:49]} 12. Qd2 {[%clk 0:02:23]}  Nb6 {[%clk 0:02:41]} 13. dxe5 {[%clk 0:02:04]}  Nc4 {[%clk 0:02:42]} 14. exf6 {[%clk 0:01:57]}  Nxd2 {[%clk 0:02:42]} 15. fxe7 {[%clk 0:01:58]}  Qxe7 {[%clk 0:02:40]} 16. Bxd2 {[%clk 0:01:58]}  h6 {[%clk 0:02:14]} 17. Rad1 {[%clk 0:01:49]}  axb4 {[%clk 0:02:14]} 18. axb4 {[%clk 0:01:49]}  Red8 {[%clk 0:01:57]} 19. Nd4 {[%clk 0:01:35]}  Qf6 {[%clk 0:01:46]} 20. Nb3 {[%clk 0:01:09]}  Rac8 {[%clk 0:01:42]} 21. Rfe1 {[%clk 0:00:56]}  Qg6 {[%clk 0:01:35]} 22. Be3 {[%clk 0:00:48]}  Qf6 {[%clk 0:01:04]} 23. Rd3 {[%clk 0:00:45]}  c5 {[%clk 0:00:42]} 24. bxc5 {[%clk 0:00:29]}  dxc5 {[%clk 0:00:32]} 25. Rxd8+ {[%clk 0:00:28]}  Rxd8 {[%clk 0:00:27]} 26. Nd5 {[%clk 0:00:25]}  Bxd5 {[%clk 0:00:22]} 27. exd5 {[%clk 0:00:26]}  Qc3 {[%clk 0:00:20]} 28. Re2 {[%clk 0:00:20]}  c4 {[%clk 0:00:17]} 29. Nd4 {[%clk 0:00:21]}  b4 {[%clk 0:00:15]} 30. Nc6 {[%clk 0:00:20]}  Rd7 {[%clk 0:00:12]} 31. Bd4 {[%clk 0:00:21]}  Qa3 {[%clk 0:00:09]} 32. Re8+ {[%clk 0:00:21]}  Kh7 {[%clk 0:00:08]} 33. Be4+ {[%clk 0:00:21]}  f5 {[%clk 0:00:07]} 34. Bxf5+ {[%clk 0:00:21]}  g6 {[%clk 0:00:08]} 35. Rh8# {[%clk 0:00:22]} 1-0


[Site "https://www.chess.com"]

[Event "Titled Tuesday Blitz February 07 Early 2023"]
[White "Kollars, Dmitrij"]
[Black "Gabrielian, Artur"]
[WhiteFideId "12909572"]
[BlackFideId "4131002"]
[WhiteElo "2607"]
[BlackElo "2452"]
[Result "1-0"]
[Round "07"]
[TimeControl "180+2"]
[Date "2023.02.07"]
[WhiteClock "0:00:10"]
[BlackClock "0:00:02"]

1. e4 {[%clk 0:03:00]}  e5 {[%clk 0:02:59]} 2. Nf3 {[%clk 0:03:00]}  Nc6 {[%clk 0:02:59]} 3. Bc4 {[%clk 0:03:01]}  Bc5 {[%clk 0:02:59]} 4. c3 {[%clk 0:03:01]}  Nf6 {[%clk 0:02:58]} 5. d3 {[%clk 0:03:00]}  d6 {[%clk 0:02:56]} 6. O-O {[%clk 0:02:59]}  a5 {[%clk 0:02:56]} 7. Nbd2 {[%clk 0:02:54]}  O-O {[%clk 0:02:51]} 8. h3 {[%clk 0:02:54]}  Ba7 {[%clk 0:02:48]} 9. Re1 {[%clk 0:02:50]}  Be6 {[%clk 0:02:47]} 10. Bb5 {[%clk 0:02:48]}  h6 {[%clk 0:02:45]} 11. Bxc6 {[%clk 0:02:15]}  bxc6 {[%clk 0:02:44]} 12. d4 {[%clk 0:02:16]}  exd4 {[%clk 0:02:10]} 13. cxd4 {[%clk 0:02:17]}  Re8 {[%clk 0:02:07]} 14. a4 {[%clk 0:02:12]}  Rb8 {[%clk 0:02:02]} 15. b3 {[%clk 0:01:51]}  Nh7 {[%clk 0:01:31]} 16. Bb2 {[%clk 0:01:41]}  Ng5 {[%clk 0:01:31]} 17. Bc3 {[%clk 0:01:40]}  Qf6 {[%clk 0:01:26]} 18. Rb1 {[%clk 0:01:05]}  Nxh3+ {[%clk 0:01:06]} 19. gxh3 {[%clk 0:01:04]}  Bxh3 {[%clk 0:01:06]} 20. Kh2 {[%clk 0:00:59]}  Bg4 {[%clk 0:01:05]} 21. Re3 {[%clk 0:00:36]}  Qf4+ {[%clk 0:00:47]} 22. Kh1 {[%clk 0:00:36]}  Re6 {[%clk 0:00:44]} 23. Qg1 {[%clk 0:00:35]}  Rxe4 {[%clk 0:00:42]} 24. Nxe4 {[%clk 0:00:24]}  Bxf3+ {[%clk 0:00:40]} 25. Rxf3 {[%clk 0:00:24]}  Qxf3+ {[%clk 0:00:10]} 26. Qg2 {[%clk 0:00:24]}  Qh5+ {[%clk 0:00:10]} 27. Kg1 {[%clk 0:00:23]}  Qf5 {[%clk 0:00:04]} 28. d5 {[%clk 0:00:20]}  g5 {[%clk 0:00:03]} 29. Nf6+ {[%clk 0:00:17]}  Kf8 {[%clk 0:00:03]} 30. Re1 {[%clk 0:00:16]}  cxd5 {[%clk 0:00:02]} 31. Bxa5 {[%clk 0:00:11]}  Bd4 {[%clk 0:00:02]} 32. Ng4 {[%clk 0:00:10]}  Rxb3 {[%clk 0:00:02]} 33. Bxc7 {[%clk 0:00:10]}  h5 {[%clk 0:00:01]} 34. Bxd6+ {[%clk 0:00:10]}  Kg7 {[%clk 0:00:01]} 35. Be5+ {[%clk 0:00:10]}  Bxe5 {[%clk 0:00:01]} 36. Nxe5 {[%clk 0:00:11]}  h4 {[%clk 0:00:02]} 37. Qxd5 {[%clk 0:00:10]} 1-0


[Site "https://www.chess.com"]

[Event "Titled Tuesday Blitz February 07 Early 2023"]
[White "Chigaev, Maksim"]
[Black "Vaishali, Rameshbabu"]
[WhiteFideId "4108116"]
[BlackFideId "5091756"]
[WhiteElo "2628"]
[BlackElo "2418"]
[Result "1-0"]
[Round "07"]
[TimeControl "180+2"]
[Date "2023.02.07"]
[WhiteClock "0:00:36"]
[BlackClock "0:00:03"]

1. e4 {[%clk 0:03:00]}  c5 {[%clk 0:02:59]} 2. Nf3 {[%clk 0:03:00]}  e6 {[%clk 0:02:56]} 3. g3 {[%clk 0:02:59]}  d5 {[%clk 0:02:55]} 4. exd5 {[%clk 0:02:57]}  exd5 {[%clk 0:02:56]} 5. d4 {[%clk 0:02:56]}  Nc6 {[%clk 0:02:53]} 6. Bg2 {[%clk 0:02:57]}  cxd4 {[%clk 0:02:53]} 7. O-O {[%clk 0:02:51]}  Bc5 {[%clk 0:02:49]} 8. Nbd2 {[%clk 0:02:51]}  Bb6 {[%clk 0:02:42]} 9. Nb3 {[%clk 0:02:51]}  Bg4 {[%clk 0:02:41]} 10. Qd3 {[%clk 0:02:51]}  Bxf3 {[%clk 0:02:38]} 11. Qxf3 {[%clk 0:02:42]}  Nge7 {[%clk 0:02:39]} 12. Re1 {[%clk 0:02:40]}  O-O {[%clk 0:02:39]} 13. a3 {[%clk 0:02:39]}  a5 {[%clk 0:02:26]} 14. Bd2 {[%clk 0:02:32]}  Qd7 {[%clk 0:02:15]} 15. Nc1 {[%clk 0:02:30]}  Rad8 {[%clk 0:01:48]} 16. Nd3 {[%clk 0:02:30]}  Qf5 {[%clk 0:01:45]} 17. b4 {[%clk 0:02:15]}  Qxf3 {[%clk 0:01:17]} 18. Bxf3 {[%clk 0:02:15]}  Nf5 {[%clk 0:01:15]} 19. Kg2 {[%clk 0:01:59]}  a4 {[%clk 0:01:04]} 20. Bf4 {[%clk 0:01:26]}  h6 {[%clk 0:00:55]} 21. h4 {[%clk 0:01:23]}  Na7 {[%clk 0:00:36]} 22. Re5 {[%clk 0:01:19]}  Nd6 {[%clk 0:00:36]} 23. Rxd5 {[%clk 0:01:08]}  Nc4 {[%clk 0:00:32]} 24. Rxd8 {[%clk 0:01:08]}  Rxd8 {[%clk 0:00:33]} 25. Bxb7 {[%clk 0:01:08]}  Nb5 {[%clk 0:00:30]} 26. Ba6 {[%clk 0:01:08]}  Ncxa3 {[%clk 0:00:20]} 27. Bxb5 {[%clk 0:01:06]}  Nxb5 {[%clk 0:00:20]} 28. Rxa4 {[%clk 0:01:07]}  Nc3 {[%clk 0:00:15]} 29. Ra6 {[%clk 0:01:04]}  Nd5 {[%clk 0:00:15]} 30. Rxb6 {[%clk 0:00:40]}  Nxb6 {[%clk 0:00:11]} 31. Bc7 {[%clk 0:00:41]}  Rc8 {[%clk 0:00:12]} 32. Bxb6 {[%clk 0:00:41]}  Rxc2 {[%clk 0:00:12]} 33. Kf3 {[%clk 0:00:42]}  Rd2 {[%clk 0:00:04]} 34. Ke4 {[%clk 0:00:41]}  f5+ {[%clk 0:00:03]} 35. Kxd4 {[%clk 0:00:41]}  Kf7 {[%clk 0:00:04]} 36. b5 {[%clk 0:00:41]}  Ke6 {[%clk 0:00:03]} 37. Kc4 {[%clk 0:00:40]}  Rc2+ {[%clk 0:00:03]} 38. Kd4 {[%clk 0:00:40]}  g5 {[%clk 0:00:04]} 39. hxg5 {[%clk 0:00:39]}  hxg5 {[%clk 0:00:04]} 40. Bd8 {[%clk 0:00:37]}  f4 {[%clk 0:00:03]} 41. Bxg5 {[%clk 0:00:35]}  fxg3 {[%clk 0:00:03]} 42. fxg3 {[%clk 0:00:36]}  Kf5 {[%clk 0:00:03]} 43. Bf4 {[%clk 0:00:36]}  Rc8 {[%clk 0:00:02]} 44. b6 {[%clk 0:00:36]}  Rd8+ {[%clk 0:00:02]} 45. Kc4 {[%clk 0:00:36]}  Ke4 {[%clk 0:00:03]} 46. Nc5+ {[%clk 0:00:36]}  Kf3 {[%clk 0:00:03]} 47. b7 {[%clk 0:00:36]} 1-0


[Site "https://www.chess.com"]

[Event "Titled Tuesday Blitz February 07 Early 2023"]
[White "Urazayev, Arystanbek"]
[Black "Wagh Suyog"]
[WhiteFideId "13709810"]
[BlackFideId "25071688"]
[WhiteElo "2460"]
[BlackElo "2313"]
[Result "1-0"]
[Round "07"]
[TimeControl "180+2"]
[Date "2023.02.07"]
[WhiteClock "0:01:22"]
[BlackClock "0:01:05"]

1. e4 {[%clk 0:03:00]}  e5 {[%clk 0:02:54]} 2. Nf3 {[%clk 0:03:01]}  Nc6 {[%clk 0:02:54]} 3. Bb5 {[%clk 0:03:00]}  a6 {[%clk 0:02:52]} 4. Ba4 {[%clk 0:03:01]}  Nf6 {[%clk 0:02:52]} 5. O-O {[%clk 0:03:01]}  Be7 {[%clk 0:02:52]} 6. d3 {[%clk 0:03:00]}  b5 {[%clk 0:02:50]} 7. Bb3 {[%clk 0:03:01]}  d6 {[%clk 0:02:51]} 8. a4 {[%clk 0:03:01]}  Bd7 {[%clk 0:02:41]} 9. Bd2 {[%clk 0:03:00]}  O-O {[%clk 0:02:34]} 10. h3 {[%clk 0:02:57]}  Nd4 {[%clk 0:02:32]} 11. Nxd4 {[%clk 0:02:53]}  exd4 {[%clk 0:02:33]} 12. f4 {[%clk 0:02:39]}  Be6 {[%clk 0:02:31]} 13. Bxe6 {[%clk 0:02:20]}  fxe6 {[%clk 0:02:32]} 14. c3 {[%clk 0:02:04]}  c5 {[%clk 0:02:30]} 15. cxd4 {[%clk 0:02:03]}  cxd4 {[%clk 0:02:30]} 16. axb5 {[%clk 0:01:53]}  axb5 {[%clk 0:02:11]} 17. Rxa8 {[%clk 0:01:51]}  Qxa8 {[%clk 0:02:11]} 18. Qb3 {[%clk 0:01:52]}  d5 {[%clk 0:02:12]} 19. e5 {[%clk 0:01:52]}  Nd7 {[%clk 0:02:08]} 20. Bb4 {[%clk 0:01:35]}  Bxb4 {[%clk 0:01:44]} 21. Qxb4 {[%clk 0:01:34]}  Qc6 {[%clk 0:01:43]} 22. Na3 {[%clk 0:01:26]}  Nc5 {[%clk 0:01:38]} 23. Rc1 {[%clk 0:01:25]}  Nxd3 {[%clk 0:01:38]} 24. Qxf8+ {[%clk 0:01:26]}  Kxf8 {[%clk 0:01:06]} 25. Rxc6 {[%clk 0:01:26]}  b4 {[%clk 0:01:06]} 26. Nc2 {[%clk 0:01:26]}  b3 {[%clk 0:01:05]} 27. Nxd4 {[%clk 0:01:26]}  Nxb2 {[%clk 0:01:06]} 28. Nxe6+ {[%clk 0:01:26]}  Ke7 {[%clk 0:01:06]} 29. Nd4 {[%clk 0:01:26]}  Nd3 {[%clk 0:01:06]} 30. Nxb3 {[%clk 0:01:23]}  Nxf4 {[%clk 0:01:06]} 31. Nd4 {[%clk 0:01:23]}  g5 {[%clk 0:01:05]} 32. Rc7+ {[%clk 0:01:23]}  Kf8 {[%clk 0:01:05]} 33. Rxh7 {[%clk 0:01:24]}  Ng6 {[%clk 0:01:05]} 34. e6 {[%clk 0:01:22]} 1-0


[Site "https://www.chess.com"]

[Event "Titled Tuesday Blitz February 07 Early 2023"]
[White "Ter-Sahakyan, Samvel"]
[Black "Harshavardhan G B"]
[WhiteFideId "13302531"]
[BlackFideId "25059009"]
[WhiteElo "2617"]
[BlackElo "2408"]
[Result "1-0"]
[Round "07"]
[TimeControl "180+2"]
[Date "2023.02.07"]
[WhiteClock "0:00:44"]
[BlackClock "0:00:02"]

1. d4 {[%clk 0:03:00]}  Nf6 {[%clk 0:02:55]} 2. c4 {[%clk 0:03:00]}  e6 {[%clk 0:02:52]} 3. Nf3 {[%clk 0:03:00]}  b6 {[%clk 0:02:51]} 4. g3 {[%clk 0:02:59]}  Ba6 {[%clk 0:02:50]} 5. b3 {[%clk 0:02:59]}  b5 {[%clk 0:02:49]} 6. Qc2 {[%clk 0:02:37]}  bxc4 {[%clk 0:02:36]} 7. bxc4 {[%clk 0:02:38]}  Nc6 {[%clk 0:02:32]} 8. Bg2 {[%clk 0:01:56]}  Nb4 {[%clk 0:02:08]} 9. Qa4 {[%clk 0:01:56]}  Bxc4 {[%clk 0:01:52]} 10. a3 {[%clk 0:01:56]}  Bb5 {[%clk 0:01:24]} 11. Qb3 {[%clk 0:01:56]}  Bxe2 {[%clk 0:01:13]} 12. axb4 {[%clk 0:01:50]}  Bb5 {[%clk 0:01:04]} 13. Nc3 {[%clk 0:01:49]}  Qb8 {[%clk 0:01:03]} 14. Ne5 {[%clk 0:01:24]}  c6 {[%clk 0:01:02]} 15. Ra5 {[%clk 0:01:18]}  Bd6 {[%clk 0:00:16]} 16. Nxb5 {[%clk 0:01:08]}  Bxe5 {[%clk 0:00:16]} 17. dxe5 {[%clk 0:01:08]}  Qxe5+ {[%clk 0:00:17]} 18. Be3 {[%clk 0:01:06]}  O-O {[%clk 0:00:13]} 19. Nc3 {[%clk 0:01:03]}  d5 {[%clk 0:00:12]} 20. O-O {[%clk 0:01:01]}  Qh5 {[%clk 0:00:10]} 21. h3 {[%clk 0:01:00]}  a6 {[%clk 0:00:07]} 22. Na4 {[%clk 0:00:53]}  e5 {[%clk 0:00:07]} 23. Nc5 {[%clk 0:00:52]}  d4 {[%clk 0:00:07]} 24. Bd2 {[%clk 0:00:53]}  Rfc8 {[%clk 0:00:05]} 25. Re1 {[%clk 0:00:49]}  h6 {[%clk 0:00:03]} 26. g4 {[%clk 0:00:49]}  Nxg4 {[%clk 0:00:02]} 27. hxg4 {[%clk 0:00:49]}  Qxg4 {[%clk 0:00:03]} 28. Qf3 {[%clk 0:00:47]}  Qxf3 {[%clk 0:00:02]} 29. Bxf3 {[%clk 0:00:47]}  f6 {[%clk 0:00:03]} 30. Rxa6 {[%clk 0:00:45]}  Rxa6 {[%clk 0:00:03]} 31. Nxa6 {[%clk 0:00:46]}  Kf7 {[%clk 0:00:03]} 32. Rc1 {[%clk 0:00:45]}  f5 {[%clk 0:00:03]} 33. Bxc6 {[%clk 0:00:44]}  Rd8 {[%clk 0:00:02]} 34. b5 {[%clk 0:00:44]}  e4 {[%clk 0:00:02]} 35. b6 {[%clk 0:00:44]} 1-0


[Site "https://www.chess.com"]

[Event "Titled Tuesday Blitz February 07 Early 2023"]
[White "Remizov, Yaroslav"]
[Black "Nguyen, Quoc Hy"]
[WhiteFideId "34134015"]
[BlackFideId "12410853"]
[WhiteElo "2421"]
[BlackElo "2352"]
[Result "1-0"]
[Round "07"]
[TimeControl "180+2"]
[Date "2023.02.07"]
[WhiteClock "0:00:31"]
[BlackClock "0:00:11"]

1. e4 {[%clk 0:02:58]}  c5 {[%clk 0:02:56]} 2. Nc3 {[%clk 0:02:58]}  a6 {[%clk 0:02:53]} 3. g3 {[%clk 0:02:56]}  b5 {[%clk 0:02:54]} 4. Bg2 {[%clk 0:02:57]}  Bb7 {[%clk 0:02:54]} 5. d3 {[%clk 0:02:57]}  e6 {[%clk 0:02:54]} 6. Nh3 {[%clk 0:02:57]}  Nf6 {[%clk 0:02:54]} 7. O-O {[%clk 0:02:56]}  Be7 {[%clk 0:02:52]} 8. e5 {[%clk 0:02:51]}  Bxg2 {[%clk 0:02:51]} 9. Kxg2 {[%clk 0:02:52]}  Nd5 {[%clk 0:02:48]} 10. Nxd5 {[%clk 0:02:51]}  exd5 {[%clk 0:02:48]} 11. Qf3 {[%clk 0:02:51]}  Nc6 {[%clk 0:02:43]} 12. Qxd5 {[%clk 0:02:51]}  Nb4 {[%clk 0:02:33]} 13. Qb3 {[%clk 0:02:46]}  O-O {[%clk 0:02:33]} 14. Be3 {[%clk 0:02:34]}  d6 {[%clk 0:02:30]} 15. exd6 {[%clk 0:02:34]}  Qxd6 {[%clk 0:02:31]} 16. Nf4 {[%clk 0:02:27]}  Rab8 {[%clk 0:02:12]} 17. a3 {[%clk 0:02:21]}  Qc6+ {[%clk 0:02:06]} 18. Kg1 {[%clk 0:02:14]}  c4 {[%clk 0:02:06]} 19. Qc3 {[%clk 0:02:14]}  Nd5 {[%clk 0:02:00]} 20. Nxd5 {[%clk 0:02:07]}  Qxd5 {[%clk 0:01:58]} 21. dxc4 {[%clk 0:02:04]}  bxc4 {[%clk 0:01:53]} 22. Rfd1 {[%clk 0:02:04]}  Qc6 {[%clk 0:01:43]} 23. Bd4 {[%clk 0:02:02]}  f6 {[%clk 0:01:42]} 24. b4 {[%clk 0:01:55]}  Rfd8 {[%clk 0:01:35]} 25. Bc5 {[%clk 0:01:53]}  Bxc5 {[%clk 0:01:35]} 26. Qxc4+ {[%clk 0:01:52]}  Kh8 {[%clk 0:01:36]} 27. Qxc5 {[%clk 0:01:51]}  Qxc5 {[%clk 0:01:35]} 28. bxc5 {[%clk 0:01:51]}  Kg8 {[%clk 0:01:35]} 29. c6 {[%clk 0:01:43]}  Rdc8 {[%clk 0:01:26]} 30. Rd6 {[%clk 0:01:29]}  Rb6 {[%clk 0:01:24]} 31. Rc1 {[%clk 0:01:28]}  Rbxc6 {[%clk 0:01:19]} 32. Rxc6 {[%clk 0:01:28]}  Rxc6 {[%clk 0:01:19]} 33. c4 {[%clk 0:01:29]}  Kf7 {[%clk 0:01:18]} 34. Kf1 {[%clk 0:01:27]}  Ke6 {[%clk 0:01:16]} 35. Ke2 {[%clk 0:01:27]}  Kd6 {[%clk 0:01:15]} 36. Kd3 {[%clk 0:01:27]}  Kc5 {[%clk 0:01:15]} 37. Kc3 {[%clk 0:01:26]}  Re6 {[%clk 0:01:14]} 38. Rd1 {[%clk 0:01:26]}  Re2 {[%clk 0:01:13]} 39. Rd5+ {[%clk 0:01:25]}  Kc6 {[%clk 0:01:13]} 40. Rf5 {[%clk 0:01:25]}  Ra2 {[%clk 0:01:08]} 41. Kb3 {[%clk 0:01:23]}  Re2 {[%clk 0:01:07]} 42. h4 {[%clk 0:01:23]}  Kd6 {[%clk 0:01:02]} 43. Kb4 {[%clk 0:01:18]}  Rc2 {[%clk 0:00:51]} 44. h5 {[%clk 0:01:02]}  Ke6 {[%clk 0:00:47]} 45. g4 {[%clk 0:00:59]}  g6 {[%clk 0:00:46]} 46. hxg6 {[%clk 0:00:59]}  hxg6 {[%clk 0:00:47]} 47. Rf3 {[%clk 0:00:55]}  Ke5 {[%clk 0:00:45]} 48. Kc5 {[%clk 0:00:55]}  Rb2 {[%clk 0:00:35]} 49. Re3+ {[%clk 0:00:47]}  Kf4 {[%clk 0:00:34]} 50. Re6 {[%clk 0:00:46]}  Kg5 {[%clk 0:00:30]} 51. f4+ {[%clk 0:00:41]}  Kxf4 {[%clk 0:00:18]} 52. Rxf6+ {[%clk 0:00:41]}  Kg5 {[%clk 0:00:18]} 53. Rxa6 {[%clk 0:00:41]}  Rg2 {[%clk 0:00:18]} 54. Kd6 {[%clk 0:00:36]}  Rxg4 {[%clk 0:00:17]} 55. c5 {[%clk 0:00:36]}  Rd4+ {[%clk 0:00:16]} 56. Kc7 {[%clk 0:00:35]}  Kf4 {[%clk 0:00:15]} 57. c6 {[%clk 0:00:34]}  g5 {[%clk 0:00:11]} 58. Kb7 {[%clk 0:00:31]} 1-0


[Site "https://www.chess.com"]

[Event "Titled Tuesday Blitz February 07 Early 2023"]
[White "Ohanyan, Emin"]
[Black "Malek, Jan"]
[WhiteFideId "13312022"]
[BlackFideId "21864080"]
[WhiteElo "2444"]
[BlackElo "2370"]
[Result "0-1"]
[Round "07"]
[TimeControl "180+2"]
[Date "2023.02.07"]
[WhiteClock "0:00:02"]
[BlackClock "0:01:42"]

1. e4 {[%clk 0:03:00]}  c5 {[%clk 0:02:57]} 2. Nf3 {[%clk 0:03:01]}  Nc6 {[%clk 0:02:56]} 3. d4 {[%clk 0:03:01]}  cxd4 {[%clk 0:02:57]} 4. Nxd4 {[%clk 0:03:01]}  g6 {[%clk 0:02:58]} 5. Nc3 {[%clk 0:03:02]}  Bg7 {[%clk 0:02:58]} 6. Be3 {[%clk 0:03:02]}  Nf6 {[%clk 0:02:58]} 7. Nxc6 {[%clk 0:03:02]}  bxc6 {[%clk 0:02:56]} 8. e5 {[%clk 0:03:03]}  Ng8 {[%clk 0:02:56]} 9. Bd4 {[%clk 0:03:03]}  Nh6 {[%clk 0:02:55]} 10. e6 {[%clk 0:03:03]}  O-O {[%clk 0:02:48]} 11. Bxg7 {[%clk 0:03:03]}  Kxg7 {[%clk 0:02:49]} 12. Qd4+ {[%clk 0:03:03]}  f6 {[%clk 0:02:49]} 13. exd7 {[%clk 0:03:04]}  Qxd7 {[%clk 0:02:49]} 14. Qxd7 {[%clk 0:03:04]}  Bxd7 {[%clk 0:02:50]} 15. O-O-O {[%clk 0:03:05]}  Rfd8 {[%clk 0:02:47]} 16. Ba6 {[%clk 0:03:04]}  Nf7 {[%clk 0:02:43]} 17. Rhe1 {[%clk 0:03:03]}  e5 {[%clk 0:02:43]} 18. Ne4 {[%clk 0:02:55]}  Bf5 {[%clk 0:02:22]} 19. Nd6 {[%clk 0:02:44]}  Nxd6 {[%clk 0:02:20]} 20. f4 {[%clk 0:00:57]}  e4 {[%clk 0:02:15]} 21. Rd4 {[%clk 0:00:16]}  Nf7 {[%clk 0:02:13]} 22. Rc4 {[%clk 0:00:13]}  Rab8 {[%clk 0:02:12]} 23. Rxc6 {[%clk 0:00:12]}  Rb6 {[%clk 0:02:12]} 24. Rxb6 {[%clk 0:00:12]}  axb6 {[%clk 0:02:13]} 25. Be2 {[%clk 0:00:10]}  h5 {[%clk 0:02:11]} 26. g3 {[%clk 0:00:06]}  Nh6 {[%clk 0:02:08]} 27. a4 {[%clk 0:00:05]}  Ng4 {[%clk 0:02:06]} 28. Bxg4 {[%clk 0:00:05]}  hxg4 {[%clk 0:02:05]} 29. b3 {[%clk 0:00:06]}  Kf7 {[%clk 0:02:00]} 30. Re2 {[%clk 0:00:06]}  Ke6 {[%clk 0:02:00]} 31. Kb2 {[%clk 0:00:07]}  Rd1 {[%clk 0:01:57]} 32. c4 {[%clk 0:00:06]}  Kd6 {[%clk 0:01:56]} 33. Kc3 {[%clk 0:00:06]}  Kc5 {[%clk 0:01:55]} 34. b4+ {[%clk 0:00:06]}  Kc6 {[%clk 0:01:55]} 35. a5 {[%clk 0:00:04]}  Rd3+ {[%clk 0:01:55]} 36. Kb2 {[%clk 0:00:04]}  bxa5 {[%clk 0:01:55]} 37. bxa5 {[%clk 0:00:04]}  Kc5 {[%clk 0:01:56]} 38. Re1 {[%clk 0:00:05]}  Rd6 {[%clk 0:01:54]} 39. Kc3 {[%clk 0:00:04]}  Ra6 {[%clk 0:01:55]} 40. Rd1 {[%clk 0:00:05]}  Be6 {[%clk 0:01:51]} 41. Ra1 {[%clk 0:00:03]}  Bxc4 {[%clk 0:01:50]} 42. Ra4 {[%clk 0:00:03]}  Bd5 {[%clk 0:01:47]} 43. Kd2 {[%clk 0:00:03]}  Kb5 {[%clk 0:01:47]} 44. Rd4 {[%clk 0:00:04]}  Bc6 {[%clk 0:01:45]} 45. Rd6 {[%clk 0:00:03]}  f5 {[%clk 0:01:45]} 46. Rxg6 {[%clk 0:00:03]}  Rxa5 {[%clk 0:01:45]} 47. Rf6 {[%clk 0:00:03]}  Ra2+ {[%clk 0:01:42]} 48. Ke3 {[%clk 0:00:03]}  Ra3+ {[%clk 0:01:43]} 49. Ke2 {[%clk 0:00:02]}  Kc5 {[%clk 0:01:42]} 50. Rxf5+ {[%clk 0:00:02]}  Kd4 {[%clk 0:01:43]} 51. Rg5 {[%clk 0:00:02]}  Ra2+ {[%clk 0:01:43]} 52. Kd1 {[%clk 0:00:02]}  e3 {[%clk 0:01:42]} 53. Re5 {[%clk 0:00:02]}  Bf3+ {[%clk 0:01:42]} 54. Kc1 {[%clk 0:00:02]}  e2 {[%clk 0:01:42]} 0-1


[Site "https://www.chess.com"]